[Event "Late-Titled-Tuesday-Blitz-March-19-2024"]
[Site "Chess.com"]
[Date "2024.03.19"]
[Round "9"]
[White "EsmeraldasAnderson03"]
[Black "sergiochess83"]
[Result "0-1"]
[WhiteElo "2579"]
[BlackElo "2947"]
[TimeControl "180+1"]
[EndTime "15:45:26 PDT"]
[Termination "sergiochess83 won by checkmate"]

1. d4 {[%clk 0:03:00.9]} 1... d5 {[%clk 0:02:58.8]} 2. c4 {[%clk 0:03:01.4]}
2... dxc4 {[%clk 0:02:57.5]} 3. e3 {[%clk 0:03:01.1]} 3... e5 {[%clk 0:02:52.7]}
4. Bxc4 {[%clk 0:03:00.8]} 4... Nc6 {[%clk 0:02:51]} 5. Nf3 {[%clk 0:02:59.5]}
5... e4 {[%clk 0:02:28]} 6. Nfd2 {[%clk 0:02:51.6]} 6... Qg5 {[%clk 0:02:27.9]}
7. Nxe4 {[%clk 0:02:30.7]} 7... Qxg2 {[%clk 0:02:24.9]} 8. Ng3 {[%clk 0:02:31]}
8... Nf6 {[%clk 0:02:14.7]} 9. Nc3 {[%clk 0:02:23.7]} 9... Bd6 {[%clk
0:02:11.5]} 10. Bf1 {[%clk 0:02:13.1]} 10... Qxh1 {[%clk 0:01:54]} 11. Nxh1
{[%clk 0:02:14]} 11... Bxh2 {[%clk 0:01:54]} 12. f4 {[%clk 0:02:06]} 12... Ng4
{[%clk 0:01:48.1]} 13. Be2 {[%clk 0:01:32.2]} 13... h5 {[%clk 0:01:47.9]} 14.
Nd5 {[%clk 0:01:26]} 14... Kd8 {[%clk 0:01:42.4]} 15. b3 {[%clk 0:01:22.1]}
15... Be6 {[%clk 0:01:37.9]} 16. Nc3 {[%clk 0:01:21.1]} 16... Bd7 {[%clk
0:01:37.2]} 17. Ba3 {[%clk 0:01:20.9]} 17... Nxe3 {[%clk 0:01:34.1]} 18. Qd3
{[%clk 0:01:17]} 18... Bxf4 {[%clk 0:01:34.2]} 19. Bc1 {[%clk 0:01:00.7]} 19...
Nb4 {[%clk 0:01:33.5]} 20. Qe4 {[%clk 0:00:49.3]} 20... Re8 {[%clk 0:00:45.3]}
21. Qf3 {[%clk 0:00:20.5]} 21... Bc6 {[%clk 0:00:34.3]} 22. d5 {[%clk
0:00:20.2]} 22... Nbxd5 {[%clk 0:00:34.2]} 23. Nxd5 {[%clk 0:00:19.8]} 23...
Bxd5 {[%clk 0:00:34.4]} 24. Qh3 {[%clk 0:00:19.3]} 24... g5 {[%clk 0:00:11.1]}
25. Kf2 {[%clk 0:00:14.1]} 25... c6 {[%clk 0:00:07.7]} 26. Qxh5 {[%clk
0:00:13.5]} 26... Kc7 {[%clk 0:00:07.1]} 27. Bb2 {[%clk 0:00:13.1]} 27... Rad8
{[%clk 0:00:06]} 28. Ng3 {[%clk 0:00:12.5]} 28... Re6 {[%clk 0:00:04.4]} 29.
Qxf7+ {[%clk 0:00:06.2]} 29... Kb8 {[%clk 0:00:02.1]} 30. Qh5 {[%clk 0:00:06]}
30... Nc2 {[%clk 0:00:02.2]} 31. Rd1 {[%clk 0:00:04.1]} 31... Be3+ {[%clk
0:00:02.6]} 32. Kf1 {[%clk 0:00:03.3]} 32... Rf8+ {[%clk 0:00:02.9]} 33. Bf3
{[%clk 0:00:02.3]} 33... Rxf3+ {[%clk 0:00:03]} 34. Kg2 {[%clk 0:00:02]} 34...
Rf8+ {[%clk 0:00:03.1]} 35. Kh3 {[%clk 0:00:02.5]} 35... Bf4 {[%clk 0:00:03]}
36. Bg7 {[%clk 0:00:02.6]} 36... Rd8 {[%clk 0:00:02.6]} 37. Bh6 {[%clk
0:00:02.2]} 37... Red6 {[%clk 0:00:02.9]} 38. Rg1 {[%clk 0:00:02.4]} 38... Be6+
{[%clk 0:00:03.2]} 39. Kh2 {[%clk 0:00:02.3]} 39... Ne3 {[%clk 0:00:04.1]} 40.
Qxg5 {[%clk 0:00:01.8]} 40... Bxg5 {[%clk 0:00:04.1]} 41. Bxg5 {[%clk
0:00:02.7]} 41... Ng4+ {[%clk 0:00:04.6]} 42. Kh3 {[%clk 0:00:02.9]} 42... Rg8
{[%clk 0:00:05.5]} 43. Kh4 {[%clk 0:00:03.4]} 43... Nf2 {[%clk 0:00:05.3]} 44.
Ne2 {[%clk 0:00:02.4]} 44... Rh8+ {[%clk 0:00:05.2]} 45. Kg3 {[%clk 0:00:02.8]}
45... Ne4+ {[%clk 0:00:05.5]} 46. Kf4 {[%clk 0:00:03.5]} 46... Nxg5 {[%clk
0:00:06.4]} 47. Rxg5 {[%clk 0:00:04]} 47... Bc8 {[%clk 0:00:06.4]} 48. Nc3
{[%clk 0:00:04]} 48... Rf6+ {[%clk 0:00:06.4]} 49. Ke5 {[%clk 0:00:04.1]} 49...
Re6+ {[%clk 0:00:07.2]} 50. Kd4 {[%clk 0:00:04.6]} 50... Rd8+ {[%clk 0:00:07.2]}
51. Kc4 {[%clk 0:00:04.9]} 51... b6 {[%clk 0:00:08.1]} 52. b4 {[%clk 0:00:05.1]}
52... Ba6+ {[%clk 0:00:07.8]} 53. Kb3 {[%clk 0:00:05.8]} 53... Rd3 {[%clk
0:00:07.8]} 54. Rg8+ {[%clk 0:00:05.8]} 54... Kc7 {[%clk 0:00:07.9]} 55. Rg7+
{[%clk 0:00:06.4]} 55... Rd7 {[%clk 0:00:08.2]} 56. Rg3 {[%clk 0:00:06.3]} 56...
Red6 {[%clk 0:00:07.3]} 57. b5 {[%clk 0:00:06]} 57... Bxb5 {[%clk 0:00:07.2]}
58. Kb4 {[%clk 0:00:06.5]} 58... Ba6 {[%clk 0:00:07.3]} 59. a4 {[%clk
0:00:03.2]} 59... Rd4+ {[%clk 0:00:07.5]} 60. Kb3 {[%clk 0:00:03.9]} 60... Rd3
{[%clk 0:00:08.4]} 61. Rg4 {[%clk 0:00:03.8]} 61... Bc8 {[%clk 0:00:08.4]} 62.
Kb2 {[%clk 0:00:02.4]} 62... a5 {[%clk 0:00:08.5]} 63. Rc4 {[%clk 0:00:02.8]}
63... R3d4 {[%clk 0:00:08.4]} 64. Nb5+ {[%clk 0:00:03.2]} 64... Kb7 {[%clk
0:00:07.5]} 65. Nxd4 {[%clk 0:00:04.1]} 65... c5 {[%clk 0:00:05.7]} 66. Nb5
{[%clk 0:00:04.3]} 66... Rd5 {[%clk 0:00:05.3]} 67. Rf4 {[%clk 0:00:04.3]} 67...
Bd7 {[%clk 0:00:05.7]} 68. Rf7 {[%clk 0:00:04.6]} 68... Kc8 {[%clk 0:00:06.1]}
69. Na7+ {[%clk 0:00:04]} 69... Kd8 {[%clk 0:00:06.4]} 70. Nb5 {[%clk
0:00:02.1]} 70... Bxb5 {[%clk 0:00:06.2]} 71. axb5 {[%clk 0:00:03]} 71... Rd4
{[%clk 0:00:06.8]} 72. Kc3 {[%clk 0:00:01.2]} 72... Rb4 {[%clk 0:00:07.1]} 73.
Rf6 {[%clk 0:00:01.8]} 73... Kc7 {[%clk 0:00:06.8]} 74. Rc6+ {[%clk 0:00:01.4]}
74... Kb7 {[%clk 0:00:06.7]} 75. Rf6 {[%clk 0:00:02.2]} 75... Rxb5 {[%clk
0:00:07.2]} 76. Kc4 {[%clk 0:00:02.3]} 76... Rb4+ {[%clk 0:00:07.5]} 77. Kc3
{[%clk 0:00:02.8]} 77... Rd4 {[%clk 0:00:07.7]} 78. Rf7+ {[%clk 0:00:03.5]}
78... Ka6 {[%clk 0:00:08.2]} 79. Rf8 {[%clk 0:00:04.2]} 79... a4 {[%clk
0:00:08.7]} 80. Ra8+ {[%clk 0:00:04]} 80... Kb5 {[%clk 0:00:09.4]} 81. Ra7
{[%clk 0:00:04.7]} 81... Rc4+ {[%clk 0:00:09.7]} 82. Kd3 {[%clk 0:00:05]} 82...
Rh4 {[%clk 0:00:10.6]} 83. Kc3 {[%clk 0:00:05.6]} 83... Rh3+ {[%clk 0:00:10.7]}
84. Kb2 {[%clk 0:00:06.4]} 84... Kb4 {[%clk 0:00:11.6]} 85. Rg7 {[%clk
0:00:06.8]} 85... Rh2+ {[%clk 0:00:11.8]} 86. Ka1 {[%clk 0:00:07.2]} 86... c4
{[%clk 0:00:12.7]} 87. Rg1 {[%clk 0:00:07.1]} 87... b5 {[%clk 0:00:11.8]} 88.
Rb1+ {[%clk 0:00:07.6]} 88... Kc5 {[%clk 0:00:12.2]} 89. Rc1 {[%clk 0:00:08.1]}
89... a3 {[%clk 0:00:12.2]} 90. Rb1 {[%clk 0:00:08.3]} 90... b4 {[%clk
0:00:12.2]} 91. Rc1 {[%clk 0:00:06.6]} 91... b3 {[%clk 0:00:12.5]} 92. Rd1
{[%clk 0:00:06.2]} 92... Kb4 {[%clk 0:00:12.5]} 93. Rb1 {[%clk 0:00:05.5]} 93...
Ra2# {[%clk 0:00:10.4]} 0-1

[Event "Late-Titled-Tuesday-Blitz-March-19-2024"]
[Site "Chess.com"]
[Date "2024.03.19"]
[Round "9"]
[White "rhungaski"]
[Black "Willhaven3"]
[Result "1-0"]
[WhiteElo "2620"]
[BlackElo "2497"]
[TimeControl "180+1"]
[EndTime "15:45:30 PDT"]
[Termination "rhungaski won on time"]

1. e4 {[%clk 0:03:00.9]} 1... Nf6 {[%clk 0:02:59.8]} 2. e5 {[%clk 0:02:59.8]}
2... Nd5 {[%clk 0:03:00.4]} 3. d4 {[%clk 0:03:00.7]} 3... d6 {[%clk 0:03:00.5]}
4. c4 {[%clk 0:03:01.1]} 4... Nb6 {[%clk 0:03:00.4]} 5. f4 {[%clk 0:03:01.9]}
5... Bf5 {[%clk 0:02:59.3]} 6. Nc3 {[%clk 0:02:57.3]} 6... dxe5 {[%clk
0:02:59.6]} 7. fxe5 {[%clk 0:02:57.3]} 7... e6 {[%clk 0:02:59.9]} 8. Nf3 {[%clk
0:02:48.5]} 8... Nc6 {[%clk 0:03:00.3]} 9. Be2 {[%clk 0:02:25.7]} 9... Be7
{[%clk 0:02:59.5]} 10. O-O {[%clk 0:02:21.3]} 10... O-O {[%clk 0:02:59.9]} 11.
Be3 {[%clk 0:02:20.3]} 11... f6 {[%clk 0:02:59.8]} 12. exf6 {[%clk 0:02:20.2]}
12... Bxf6 {[%clk 0:03:00]} 13. Qd2 {[%clk 0:02:19.2]} 13... Qe7 {[%clk
0:03:00.2]} 14. Rad1 {[%clk 0:02:18.1]} 14... Rad8 {[%clk 0:03:00.4]} 15. Qc1
{[%clk 0:02:18.2]} 15... h6 {[%clk 0:03:00.3]} 16. h3 {[%clk 0:02:18]} 16... Bh7
{[%clk 0:03:00.4]} 17. Kh1 {[%clk 0:02:13.3]} 17... Kh8 {[%clk 0:03:00.6]} 18.
Bg1 {[%clk 0:02:10]} 18... Rd7 {[%clk 0:02:58.9]} 19. Rfe1 {[%clk 0:01:51.9]}
19... Qb4 {[%clk 0:02:48.2]} 20. a3 {[%clk 0:01:40.5]} 20... Qa5 {[%clk
0:02:24.7]} 21. b4 {[%clk 0:01:35.8]} 21... Qf5 {[%clk 0:02:20.9]} 22. Bd3
{[%clk 0:01:18.4]} 22... Qh5 {[%clk 0:02:20]} 23. Bxh7 {[%clk 0:01:18.4]} 23...
Kxh7 {[%clk 0:02:20.9]} 24. Ne4 {[%clk 0:01:11.8]} 24... Qg6 {[%clk 0:02:04.1]}
25. Nc5 {[%clk 0:01:07.9]} 25... Re7 {[%clk 0:01:34.8]} 26. Nxe6 {[%clk
0:00:59.9]} 26... Rfe8 {[%clk 0:01:14.8]} 27. d5 {[%clk 0:00:59.9]} 27... Nd8
{[%clk 0:01:04.4]} 28. Nxd8 {[%clk 0:00:57.2]} 28... Rxd8 {[%clk 0:01:05.3]} 29.
Rxe7 {[%clk 0:00:56.9]} 29... Bxe7 {[%clk 0:01:05.9]} 30. Re1 {[%clk 0:00:50.8]}
30... Bf6 {[%clk 0:01:05.3]} 31. Bxb6 {[%clk 0:00:45.1]} 31... axb6 {[%clk
0:01:04.5]} 32. Qe3 {[%clk 0:00:45.7]} 32... Bb2 {[%clk 0:00:55]} 33. Nh4 {[%clk
0:00:32.3]} 33... Qc2 {[%clk 0:00:54]} 34. Re2 {[%clk 0:00:25.9]} 34... Qb1+
{[%clk 0:00:52]} 35. Kh2 {[%clk 0:00:24.5]} 35... Bf6 {[%clk 0:00:31.2]} 36. Nf3
{[%clk 0:00:24.4]} 36... Ra8 {[%clk 0:00:29.4]} 37. c5 {[%clk 0:00:21.8]} 37...
Rd8 {[%clk 0:00:21.6]} 38. Rd2 {[%clk 0:00:19.4]} 38... bxc5 {[%clk 0:00:20.8]}
39. bxc5 {[%clk 0:00:20.3]} 39... Qb5 {[%clk 0:00:19.6]} 40. d6 {[%clk
0:00:15.9]} 40... cxd6 {[%clk 0:00:19.2]} 41. Qe4+ {[%clk 0:00:15.1]} 41... Kh8
{[%clk 0:00:18.8]} 42. cxd6 {[%clk 0:00:15.9]} 42... Qd7 {[%clk 0:00:15]} 43. a4
{[%clk 0:00:10.3]} 43... Re8 {[%clk 0:00:15.2]} 44. Qd5 {[%clk 0:00:09.8]} 44...
Qxa4 {[%clk 0:00:13.4]} 45. Qxb7 {[%clk 0:00:06.7]} 45... Rd8 {[%clk 0:00:13.3]}
46. Qd5 {[%clk 0:00:06.2]} 46... Qd7 {[%clk 0:00:12.7]} 47. g3 {[%clk 0:00:06]}
47... Rc8 {[%clk 0:00:11.3]} 48. Ne5 {[%clk 0:00:05.3]} 48... Bxe5 {[%clk
0:00:10.9]} 49. Qxe5 {[%clk 0:00:06.2]} 49... Re8 {[%clk 0:00:10.9]} 50. Qd5
{[%clk 0:00:06.4]} 50... Re6 {[%clk 0:00:11]} 51. h4 {[%clk 0:00:06.1]} 51...
Rf6 {[%clk 0:00:07.8]} 52. h5 {[%clk 0:00:06.1]} 52... Rf5 {[%clk 0:00:07.8]}
53. Qe4 {[%clk 0:00:02.9]} 53... Rxh5+ {[%clk 0:00:07.6]} 54. Kg1 {[%clk
0:00:03.7]} 54... Rb5 {[%clk 0:00:05.8]} 55. Qf4 {[%clk 0:00:02.2]} 55... Rb7
{[%clk 0:00:05.1]} 56. Qf8+ {[%clk 0:00:01.7]} 56... Kh7 {[%clk 0:00:04.5]} 57.
Kh2 {[%clk 0:00:02.6]} 57... Rb5 {[%clk 0:00:02.8]} 58. Qe7 {[%clk 0:00:02.3]}
58... Rh5+ {[%clk 0:00:03.1]} 59. Kg1 {[%clk 0:00:02.2]} 59... Qxe7 {[%clk
0:00:02]} 60. dxe7 {[%clk 0:00:03.1]} 60... Re5 {[%clk 0:00:02.1]} 61. Rd7
{[%clk 0:00:03.8]} 61... Kg6 {[%clk 0:00:02.4]} 62. Kf2 {[%clk 0:00:03.6]} 62...
Kf7 {[%clk 0:00:02.5]} 63. e8=Q+ {[%clk 0:00:04.1]} 63... Kxe8 {[%clk 0:00:03]}
64. Rxg7 {[%clk 0:00:04.1]} 64... Re7 {[%clk 0:00:03.4]} 65. Rg6 {[%clk
0:00:01.3]} 65... Rh7 {[%clk 0:00:03.6]} 66. Kg2 {[%clk 0:00:01.9]} 66... Kf7
{[%clk 0:00:04.4]} 67. Ra6 {[%clk 0:00:02.8]} 67... Kg7 {[%clk 0:00:04.3]} 68.
Kh3 {[%clk 0:00:03.7]} 68... Kf7 {[%clk 0:00:04.8]} 69. Kh4 {[%clk 0:00:04.6]}
69... Rg7 {[%clk 0:00:03.8]} 70. Rxh6 {[%clk 0:00:04.3]} 70... Kf8 {[%clk
0:00:03.2]} 71. Ra6 {[%clk 0:00:04.2]} 71... Kf7 {[%clk 0:00:03.7]} 72. g4
{[%clk 0:00:04.6]} 72... Kg8 {[%clk 0:00:04]} 73. Kh5 {[%clk 0:00:04.6]} 73...
Kh7 {[%clk 0:00:04.5]} 74. g5 {[%clk 0:00:05.1]} 74... Rb7 {[%clk 0:00:04.9]}
75. Rc6 {[%clk 0:00:05]} 75... Kg7 {[%clk 0:00:05]} 76. Rh6 {[%clk 0:00:05.6]}
76... Ra7 {[%clk 0:00:04.2]} 77. Rg6+ {[%clk 0:00:06.1]} 77... Kh7 {[%clk
0:00:03.2]} 78. Rf6 {[%clk 0:00:06.5]} 78... Kg7 {[%clk 0:00:02.7]} 79. Rf5
{[%clk 0:00:07.1]} 79... Ra1 {[%clk 0:00:01.6]} 80. Rf4 {[%clk 0:00:05.3]} 80...
Rh1+ {[%clk 0:00:02.1]} 81. Kg4 {[%clk 0:00:06]} 81... Rg1+ {[%clk 0:00:02.6]}
82. Kf5 {[%clk 0:00:06.8]} 82... Re1 {[%clk 0:00:02.9]} 83. Rf3 {[%clk 0:00:07]}
83... Ra1 {[%clk 0:00:03.2]} 84. Rb3 {[%clk 0:00:05.1]} 84... Ra5+ {[%clk
0:00:03.5]} 85. Kg4 {[%clk 0:00:05]} 85... Kg8 {[%clk 0:00:03.1]} 86. Rb7 {[%clk
0:00:03.4]} 1-0

[Event "Late-Titled-Tuesday-Blitz-March-19-2024"]
[Site "Chess.com"]
[Date "2024.03.19"]
[Round "9"]
[White "Vladimir_Zakhartsov"]
[Black "Igrok3069"]
[Result "0-1"]
[WhiteElo "2985"]
[BlackElo "2884"]
[TimeControl "180+1"]
[EndTime "15:45:37 PDT"]
[Termination "Igrok3069 won by resignation"]

1. d4 {[%clk 0:02:57.6]} 1... d5 {[%clk 0:02:59.6]} 2. c4 {[%clk 0:02:57.3]}
2... c6 {[%clk 0:02:59.9]} 3. cxd5 {[%clk 0:02:57.2]} 3... cxd5 {[%clk
0:02:59.7]} 4. Bf4 {[%clk 0:02:57.9]} 4... Nc6 {[%clk 0:02:57.3]} 5. e3 {[%clk
0:02:58.4]} 5... Nf6 {[%clk 0:02:52.7]} 6. Bb5 {[%clk 0:02:57.9]} 6... e6 {[%clk
0:02:48]} 7. Nf3 {[%clk 0:02:47.5]} 7... Bd6 {[%clk 0:02:47.8]} 8. Nc3 {[%clk
0:02:04]} 8... Bxf4 {[%clk 0:02:45.9]} 9. exf4 {[%clk 0:02:03.4]} 9... Bd7
{[%clk 0:02:41]} 10. O-O {[%clk 0:01:59.1]} 10... O-O {[%clk 0:02:40.9]} 11. Bd3
{[%clk 0:01:52.8]} 11... Rc8 {[%clk 0:02:36.6]} 12. Rc1 {[%clk 0:01:50.1]} 12...
Qa5 {[%clk 0:02:10.6]} 13. Re1 {[%clk 0:01:43.8]} 13... Rfd8 {[%clk 0:02:04.4]}
14. a3 {[%clk 0:01:36.2]} 14... a6 {[%clk 0:01:57]} 15. Bb1 {[%clk 0:01:29.5]}
15... g6 {[%clk 0:01:53.6]} 16. Ne5 {[%clk 0:01:26.3]} 16... Qb6 {[%clk
0:01:39.2]} 17. Nxc6 {[%clk 0:00:38.6]} 17... Bxc6 {[%clk 0:01:38.9]} 18. Qd2
{[%clk 0:00:34.2]} 18... Ne4 {[%clk 0:01:17.5]} 19. Bxe4 {[%clk 0:00:26.1]}
19... dxe4 {[%clk 0:01:18.4]} 20. Rcd1 {[%clk 0:00:24]} 20... f5 {[%clk
0:01:09.7]} 21. h4 {[%clk 0:00:23.5]} 21... Rd7 {[%clk 0:01:06.6]} 22. h5 {[%clk
0:00:13.9]} 22... Rcd8 {[%clk 0:01:06.3]} 23. Qe3 {[%clk 0:00:13.8]} 23... gxh5
{[%clk 0:00:53.3]} 24. Qg3+ {[%clk 0:00:13.7]} 24... Rg7 {[%clk 0:00:53]} 25.
Qh4 {[%clk 0:00:09.9]} 25... Qc7 {[%clk 0:00:31.7]} 26. Re3 {[%clk 0:00:08.8]}
26... Rg4 {[%clk 0:00:30.2]} 27. Qf6 {[%clk 0:00:04.8]} 27... Rg6 {[%clk
0:00:21.9]} 28. Qh4 {[%clk 0:00:04.9]} 28... Rd7 {[%clk 0:00:17.1]} 29. g3
{[%clk 0:00:04]} 29... Qd8 {[%clk 0:00:15.8]} 30. Qxh5 {[%clk 0:00:03.7]} 30...
Rxd4 {[%clk 0:00:15.8]} 31. Rxd4 {[%clk 0:00:03.7]} 31... Qxd4 {[%clk
0:00:15.5]} 32. Kg2 {[%clk 0:00:04.3]} 32... Qd6 {[%clk 0:00:14.2]} 33. Ne2
{[%clk 0:00:04.3]} 33... Bb5 {[%clk 0:00:13.2]} 34. Nc3 {[%clk 0:00:03.7]} 34...
Bd3 {[%clk 0:00:13.1]} 35. Qh4 {[%clk 0:00:03.5]} 35... Kg7 {[%clk 0:00:12.1]}
36. Qh5 {[%clk 0:00:03.3]} 36... Qe7 {[%clk 0:00:11.5]} 37. Re1 {[%clk 0:00:03]}
37... Rh6 {[%clk 0:00:11.7]} 38. Qg5+ {[%clk 0:00:03.5]} 38... Qxg5 {[%clk
0:00:11.9]} 39. fxg5 {[%clk 0:00:04.3]} 39... Rh5 {[%clk 0:00:11.6]} 40. f4
{[%clk 0:00:03.8]} 40... exf3+ {[%clk 0:00:10.1]} 41. Kxf3 {[%clk 0:00:04.3]}
41... Kf7 {[%clk 0:00:09.7]} 42. Kf4 {[%clk 0:00:04.2]} 42... Rh2 {[%clk
0:00:09.6]} 43. Rd1 {[%clk 0:00:04.7]} 43... Bb5 {[%clk 0:00:04]} 44. Nxb5
{[%clk 0:00:04.4]} 44... axb5 {[%clk 0:00:04.6]} 45. Rd7+ {[%clk 0:00:05]} 45...
Kg6 {[%clk 0:00:05.2]} 46. b4 {[%clk 0:00:04.9]} 46... Rf2+ {[%clk 0:00:04.9]}
47. Ke5 {[%clk 0:00:04.7]} 47... Re2+ {[%clk 0:00:05.1]} 48. Kf4 {[%clk
0:00:04.4]} 48... Re4+ {[%clk 0:00:04.8]} 49. Kf3 {[%clk 0:00:04.7]} 49... Kxg5
{[%clk 0:00:04.3]} 50. Rxb7 {[%clk 0:00:05]} 50... Re5 {[%clk 0:00:04.7]} 51.
Rxh7 {[%clk 0:00:05.2]} 51... Rd5 {[%clk 0:00:05]} 52. Rg7+ {[%clk 0:00:04.3]}
52... Kf6 {[%clk 0:00:05.2]} 53. Rc7 {[%clk 0:00:05]} 53... Rd3+ {[%clk
0:00:04.8]} 54. Kf2 {[%clk 0:00:04.5]} 54... Rxa3 {[%clk 0:00:04.4]} 55. Rc5
{[%clk 0:00:05.1]} 55... Ra2+ {[%clk 0:00:04.8]} 56. Kf3 {[%clk 0:00:04.6]}
56... Ra3+ {[%clk 0:00:05.4]} 57. Kf2 {[%clk 0:00:04.7]} 57... Kg5 {[%clk
0:00:05.2]} 58. Rxb5 {[%clk 0:00:04.3]} 58... Kg4 {[%clk 0:00:05.7]} 59. Re5
{[%clk 0:00:04.6]} 59... Rf3+ {[%clk 0:00:06.2]} 60. Ke2 {[%clk 0:00:04.9]}
60... Rxg3 {[%clk 0:00:04.7]} 61. Rxe6 {[%clk 0:00:05.1]} 61... Rb3 {[%clk
0:00:04.9]} 62. Rb6 {[%clk 0:00:04.3]} 62... Rb2+ {[%clk 0:00:04.3]} 63. Ke1
{[%clk 0:00:02.6]} 63... f4 {[%clk 0:00:04.6]} 64. Rg6+ {[%clk 0:00:01.6]} 64...
Kf3 {[%clk 0:00:04.1]} 65. Rc6 {[%clk 0:00:02.5]} 65... Rxb4 {[%clk 0:00:03.7]}
66. Rc3+ {[%clk 0:00:01.6]} 66... Kg2 {[%clk 0:00:03.2]} 67. Rc2+ {[%clk
0:00:02.3]} 67... Kg3 {[%clk 0:00:03.7]} 68. Rc8 {[%clk 0:00:02.1]} 68... Rb1+
{[%clk 0:00:03.5]} 69. Kd2 {[%clk 0:00:02]} 69... f3 {[%clk 0:00:03.6]} 70. Rg8+
{[%clk 0:00:01.5]} 70... Kf2 {[%clk 0:00:03.9]} 71. Rd8 {[%clk 0:00:01.2]} 71...
Kg2 {[%clk 0:00:03.4]} 72. Rh8 {[%clk 0:00:01.2]} 72... Rb6 {[%clk 0:00:02.5]}
73. Rg8+ {[%clk 0:00:02.1]} 73... Kf2 {[%clk 0:00:02]} 74. Rd8 {[%clk 0:00:03]}
74... Re6 {[%clk 0:00:01.1]} 75. Rg8 {[%clk 0:00:03.8]} 75... Kf1 {[%clk
0:00:01.6]} 76. Rf8 {[%clk 0:00:03.6]} 76... f2 {[%clk 0:00:02]} 77. Rd8 {[%clk
0:00:04.5]} 77... Re2+ {[%clk 0:00:01.9]} 78. Kd1 {[%clk 0:00:04.5]} 78... Re7
{[%clk 0:00:02.8]} 79. Kd2 {[%clk 0:00:05.2]} 79... Re6 {[%clk 0:00:02.9]} 80.
Rg8 {[%clk 0:00:06.1]} 80... Re5 {[%clk 0:00:03.1]} 81. Rd8 {[%clk 0:00:06]}
81... Re4 {[%clk 0:00:03.3]} 82. Rd7 {[%clk 0:00:06.4]} 82... Re5 {[%clk
0:00:03.7]} 83. Rd8 {[%clk 0:00:06.7]} 83... Re4 {[%clk 0:00:03.8]} 84. Rg8
{[%clk 0:00:06.8]} 84... Rd4+ {[%clk 0:00:03.6]} 85. Ke3 {[%clk 0:00:06.9]}
85... Rd7 {[%clk 0:00:02.6]} 86. Rf8 {[%clk 0:00:06]} 86... Re7+ {[%clk
0:00:02.9]} 87. Kd2 {[%clk 0:00:06.1]} 87... Rd7+ {[%clk 0:00:03.3]} 88. Ke3
{[%clk 0:00:06.4]} 88... Ke1 {[%clk 0:00:03.8]} 89. Ra8 {[%clk 0:00:06.2]} 89...
Re7+ {[%clk 0:00:03.7]} 90. Kd4 {[%clk 0:00:07]} 90... f1=Q {[%clk 0:00:04.1]}
91. Ra1+ {[%clk 0:00:07.9]} 91... Kf2 {[%clk 0:00:04.4]} 92. Ra2+ {[%clk
0:00:08.8]} 92... Qe2 {[%clk 0:00:04.4]} 93. Ra3 {[%clk 0:00:09.7]} 93... Qe3+
{[%clk 0:00:04.4]} 94. Rxe3 {[%clk 0:00:09.6]} 94... Rxe3 {[%clk 0:00:05.1]} 0-1